Workbook

Sheet Menu
A1: Ceci est une calculatrice d'aide aux décisions d'affaire à la ferme qui comporte 7 feuilles de travail. Certains champs doivent être remplis par l'utilisateur. Elle peut avoir 24 colonnes de largeur et 55 rangées.
A2: Menu - Calculateur des coûts des machines
A15: La calculateur des coûts des machines comprend une calculatrice des coûts, des tableaux des coûts, une fiche technique sur le calcul des coûts des machines agricoles et un tableur de comparaison des différentes options à envisager lors du remplacement d'une machine comme l'achat, la réparation, le crédit-bail et le travail à forfait. Elle comprend aussi un tableur simple pour le crédit-bail selon la comptabilité de caisse.
A17: Conçu par John Molenhuis
A18: chargé de programme, analyse des activités commerciales et des coûts de production
A19: MAAAO, Brighton
A20: Courriel: john.molenhuis@ontario.ca
A22: Révisé le avril 2020
A24: fin de la feuille de calcul

Sheet Fiches techniques
A2: Comment calculer les coûts des machines agricoles
A3: par John Molenhuis
A4: Chargé de programme, analyse des activités commerciales et des coûts de production
A5: Ministère de l'agriculture et de l'alimentation et des affaires rurales de l'Ontario
A7: https://www.publications.gov.on.ca/fr/300228
A12: Contrats de location, Crédit-bail agricole
A13: par Erich Weber
A14: Chargé de programme, Genres d’entreprises et questions financières
A15: Ministère de l'agriculture et de l'alimentation et des affaires rurales de l'Ontario
A17: http://www.omafra.gov.on.ca/french/busdev/facts/13-060.htm
A20: fin de la feuille de calcul

Sheet Calculatrice
B2: Type de machine (p. ex., moissonneuse-batteuse)
B3: Calculateur des coûts des machines
B4: MACHINES AGRICOLES MOTORISÉES (TRACTEURS OU MACHINES AUTOMOTRICES)
B5: Durée d'utilisation (années) | C5: 5 | D5: Prix d'achat | E5: 240000
B6: Taux d'intérêt | C6: 0.05 | D6: Valeur de reprise | E6: 105000
B7: Acres par année | C7: 1600 | D7: Heures par année | E7: 200
B8: Acres/h (voir tableau 5) | C8: 8 | D8: Prix du litre de carburant | E8: 0.6
D9: Consommation-L/h (voir tableau 5) | E9: 40
B10: Charges fixes annuelles
B11: Amortissement = | D11: prix d'achat – valeur de reprise | E11: =(E5-E6)/C5 -> 27000
B12: (voir tableau 3) | D12: durée d'utilisation (années)
B13: Intérêt* = | D13: (prix d'achat + valeur de reprise) x taux annuel d'intérêt | E13: =((E5+E6)/2)*C6 -> 8625
D14: 2
B15: Assurance et remisage = | D15: prix d'achat x 1 ½ % | E15: =E5*1.5/100 -> 3600
B16: Total des charges fixes | E16: =SUM(E11:E15) -> 39225 | F16: (A)
B18: Coûts d'exploitation annuels
B19: Carburant et lubrifiants (tableau 5) | D19: (L/h x h/an x coût du carburant/L x 1,15) | E19: =E9*E7*E8*1.15 -> 5520
B20: Réparations = | D20: estimés au moyen du tableau 4 | E20: 2000
B21: Total des coûts d'exploitation | E21: =SUM(E19:E20) -> 7520 | F21: (B)
B22: Total des coûts | E22: =E21+E16 -> 46745
B23: AUTRES MACHINES (INSTRUMENTS ARATOIRES, MACHINES À PRISE DE FORCE, ETC.)
B24: Durée d'utilisation (années) | C24: 5 | D24: Prix d'achat | E24: 0
B25: Taux d'intérêt | C25: 0.05 | D25: Valeur de reprise | E25: 0
B26: Charges fixes annuelles
B27: Amortissement = | D27: prix d'achat – valeur de reprise | E27: =(E24-E25)/C24 -> 0
D28: durée d'utilisation (années)
B29: Intérêt* = | D29: (prix d'achat + valeur de reprise) x taux annuel d'intérêt | E29: =((E24+E25)/2)*C25 -> 0
D30: 2
B31: Assurance et remisage = | D31: prix d'achat x 1 ½ % | E31: =E24*1.5/100 -> 0
B32: Total des charges fixes | E32: =SUM(E27:E31) -> 0 | F32: (C)
B34: Coûts d'exploitation annuels
B35: Réparations = | D35: estimés au moyen du tableau 4 | E35: 0
B36: Total des coûts d'exploitation | E36: =SUM(E34:E35) -> 0 | F36: (D)
B37: Total des coûts | E37: =E32+E36 -> 0
B38: COÛTS ANNUELS DES MACHINES (A+B+C+D) | E38: =+E16+E21+E32+E36 -> 46745 | F38: (E)
B39: Rémunération pour la gestion | C39: 0.15 | D39: Dépenses horaires de main-d'œuvre de l'exploitant (y compris lui-même) | E39: 17
D40: Coûts de main-d'œuvre liés au déplacement des machines et aux pannes | E40: 0.15
B41: Marge de profit (rémunération pour la gestion, frais d'administration) (suggestion : 15 % des coûts des machines) (E x 0,15) | E41: =E38*C39 -> 7011.75 | F41: (F)
B42: Dépenses de main-d'œuvre de l'exploitant (y compris lui-même) --- (suggestion : 15 % des heures d'utilisation pour les déplacements et pannes) Nombre d'heures d'utilisation x 1,15 x salaire/h | E42: =E7*E39*(1+E40) -> 3910 | F42: (G)
B43: Total des coûts (y compris les coûts de gestion) (E+F+G) | E43: =E38+E41+E42 -> 57666.75 | F43: (H)
B44: * Intérêts — Frais d'intérêts annuels moyens associés à l'investissement (le vôtre ou celui du prêteur) dans la machine
B46: Analyse
B47: Charges fixes/acre | D47: =(E16+E32)/C7 -> 24.515625
B48: Coûts d'exploitation/acre | D48: =(E21+E36)/C7 -> 4.7
B49: Total des coûts par acre | D49: =E43/C7 -> 36.04171875
B50: Charges fixes/h | D50: =(E16+E32)/E7 -> 196.125
B51: Coûts d'exploitation/h | D51: =(E21+E36)/E7 -> 37.6
B52: Coûts horaires | D52: =E43/E7 -> 288.33375

Sheet Tableaux des coûts
B1: Tableaux 4 et 5 à droite
B3: TABLEAU 3. Valeurs de reprise exprimées en pourcentage du coût d'achat | N3: TABLEAU 4. Coûts de réparation cumulatifs exprimés en pourcentage du prix d'achat | T3: TABLEAU 5. Besoins en rendement, en puissance motrice et en carburant de certaines machines agricoles
B4: Fin de l'année | C4: Tracteurs (CV) | F4: Groupe 1 | G4: Groupe 2 | H4: Groupe 3 | I4: Groupe 4 | J4: Groupe 5 | K4: Groupe 6 | L4: Groupe 7 | N4: Machine | O4: 1er quart de vie Heures - Coûts cumulatifs | P4: 2e quart de vie Heures - Coûts cumulatifs | Q4: 3e quart de vie Heures - Coûts cumulatifs | R4: Vie entière Heures - Coûts cumulatifs | U4: Puissance requise (CV) | V4: Acres/ heure | W4: Litres/ acre | X4: Litres/ heure
C5: <80 | D5: 80-149 | E5: 150+ | N5: Tracteurs (2 roues motrices) | O5: 3 000 – 6,2 % | P5: 6 000 – 25,0 % | Q5: 9 000 – 56,2 % | R5: 12 000 – 100 % | T5: Charrue à 4 socs de 18 po | U5: 75 | V5: 2.8 | W5: 4.5 | X5: 12.5
B6: 1 | C6: 60 | D6: 68 | E6: 67 | F6: 74 | G6: 49 | H6: 56 | I6: 65 | J6: 47 | K6: 61 | L6: 69 | N6: Tracteurs (4 roues motrices et MFWD) | O6: 4 000 – 4,8 % | P6: 8 000 – 19,2 % | Q6: 12 000 – 43,2 % | R6: 16 000 – 80 % | T6: Charrue à 6 socs de 18 po | U6: 130 MFWD | V6: 4.2 | W6: 5.1 | X6: 21.6
B7: 2 | C7: 54 | D7: 61 | E7: 59 | F7: 62 | G7: 44 | H7: 50 | I7: 60 | J7: 44 | K7: 54 | L7: 62 | N7: Moissonneuses-batteuses automotrices | O7: 750 – 2,2 % | P7: 1 500 – 9,3 % | Q7: 2 250 – 21,9 % | R7: 3 000 – 40 % | T7: Charrue à 8 socs de 18 po | U7: 160 | V7: 5.6 | W7: 4.7 | X7: 26.5
B8: 3 | C8: 50 | D8: 57 | E8: 54 | F8: 54 | G8: 40 | H8: 46 | I8: 56 | J8: 42 | K8: 49 | L8: 56 | N8: Semoirs, planteuses | O8: 375 – 4,1 % | P8: 750 – 17,5 % | Q8: 1 125 – 41,0 % | R8: 1 500 – 75 % | T8: Cultivateur de 12,5 pi | U8: 75 | V8: 9 | W8: 1.4 | X8: 12.5
B9: 4 | C9: 46 | D9: 53 | E9: 49 | F9: 48 | G9: 37 | H9: 42 | I9: 53 | J9: 40 | K9: 45 | L9: 52 | N9: Charrues à socs | O9: 500 – 8,3 % | P9: 1 000 – 28,7 % | Q9: 1 500 – 59,6 % | R9: 2 000 – 100 % | T9: Cultivateur de 18 pi | U9: 105 MFWD | V9: 13 | W9: 1.3 | X9: 17.4
B10: 5 | C10: 43 | D10: 49 | E10: 45 | F10: 43 | G10: 35 | H10: 39 | I10: 50 | J10: 39 | K10: 42 | L10: 48 | N10: Pulvériseurs, herses à disques | O10: 500 – 5,5 % | P10: 1 000 – 18,0 % | Q10: 1 500 – 35,9 % | R10: 2 000 – 60 % | T10: Cultivateur de 37 pi | U10: 225 | V10: 26.7 | W10: 1.4 | X10: 37.5
B11: 6 | C11: 41 | D11: 46 | E11: 42 | F11: 38 | G11: 32 | H11: 37 | I11: 48 | J11: 38 | K11: 39 | L11: 45 | N11: Chisels, déchaumeuses | O11: 500 – 10,1 % | P11: 1 000 – 26,5 % | Q11: 1 500 – 46,8 % | R11: 2 000 – 75 % | T11: Charrue chisel de 11 pi | U11: 75 | V11: 5.9 | W11: 2.1 | X11: 12.5
B12: 7 | C12: 38 | D12: 44 | E12: 39 | F12: 34 | G12: 30 | H12: 34 | I12: 46 | J12: 36 | K12: 36 | L12: 42 | N12: Cultivateurs | O12: 500 – 10,2 % | P12: 1 000 – 27,0 % | Q12: 1 500 – 47,6 % | R12: 2 000 – 70 % | T12: Charrue chisel de 15 pi | U12: 130 MFWD | V12: 8 | W12: 2.7 | X12: 21.6
B13: 8 | C13: 36 | D13: 41 | E13: 36 | F13: 31 | G13: 28 | H13: 32 | I13: 44 | J13: 35 | K13: 34 | L13: 40 | N13: Faucheuses | O13: 500 – 14,2 % | P13: 1 000 – 46,2 % | Q13: 1 500 – 92,0 % | R13: 2 000 – 150 % | T13: Pulvériseur tandem de 11 pi | U13: 60 | V13: 6.4 | W13: 1.5 | X13: 9.9
B14: 9 | C14: 34 | D14: 39 | E14: 34 | F14: 28 | G14: 27 | H14: 30 | I14: 42 | J14: 34 | K14: 31 | L14: 37 | N14: Presses à petites balles carrées | O14: 500 – 6,6 % | P14: 1 000 – 23,0 % | Q14: 1 500 – 47,7 % | R14: 2 000 – 80 % | T14: Pulvériseur tandem de 15 pi | U14: 105 MFWD | V14: 8.7 | W14: 2 | X14: 17.4
B15: 10 | C15: 33 | D15: 37 | E15: 32 | F15: 25 | G15: 25 | H15: 28 | I15: 40 | J15: 33 | K15: 30 | L15: 35 | N15: Presses à grosses balles carrées | O15: 750 – 6,0 % | P15: 1 500 – 20,7 % | Q15: 2 250 – 43,0 % | R15: 3 000 – 75 % | T15: Semoir en lignes à 4 rangs de 36 po | U15: 40 | V15: 5.6 | W15: 1.2 | X15: 6.8
B16: 11 | C16: 31 | D16: 35 | E16: 30 | F16: 23 | G16: 24 | H16: 27 | I16: 39 | J16: 32 | K16: 28 | L16: 33 | N16: Presses à grosses balles rondes | O16: 375 – 7,4 % | P16: 750 – 25,9 % | Q16: 1 125 – 53,6 % | R16: 1 500 – 90 % | T16: Semoir en lignes à 6 rangs de 30 po | U16: 60 | V16: 7 | W16: 1.4 | X16: 9.9
B17: 12 | C17: 29 | D17: 33 | E17: 28 | F17: 20 | G17: 23 | H17: 25 | I17: 38 | J17: 32 | K17: 26 | L17: 31 | N17: Récolteuses-hacheuses automotrices | O17: 1 000 – 3,1 % | P17: 2 000 – 12,5 % | Q17: 3 000 – 28,1 % | R17: 4 000 – 50 % | T17: Semoir en lignes à 12 rangs de 30 po | U17: 105 MFWD | V17: 14 | W17: 1.2 | X17: 17.4
B18: 13 | C18: 28 | D18: 32 | E18: 26 | F18: 18 | G18: 21 | H18: 24 | I18: 36 | J18: 31 | K18: 24 | L18: 29 | N18: Râteaux | O18: 625 – 8,6 % | P18: 1 250 – 22,7 % | Q18: 1 875 – 40,1 % | R18: 2 500 – 60 % | T18: Semoir combiné à 4 rangs de 36 po | U18: 60 | V18: 5.1 | W18: 1.9 | X18: 9.9
B19: 14 | C19: 27 | D19: 30 | E19: 24 | F19: 17 | G19: 20 | H19: 22 | I19: 35 | J19: 30 | K19: 23 | L19: 28 | N19: Source : American Society of Agricultural Engineers Standards, American Society of Agricultural Engineers, 1999 | T19: Semoir combiné à 6 rangs de 30 po | U19: 75 | V19: 6.4 | W19: 2 | X19: 12.5
B20: 15 | C20: 25 | D20: 29 | E20: 23 | F20: 15 | G20: 19 | H20: 21 | I20: 34 | J20: 29 | K20: 22 | L20: 26 | T20: Semoir combiné à 8 rangs de 30 po | U20: 105 MFWD | V20: 8.5 | W20: 2.1 | X20: 17.4
B21: 16 | C21: 24 | D21: 28 | E21: 21 | F21: 13 | G21: 18 | H21: 20 | I21: 33 | J21: 29 | K21: 20 | L21: 25 | T21: Semoir à céréales de 25 pi | U21: 130 MFWD | V21: 4.7 | W21: 4.6 | X21: 21.6
B22: 17 | C22: 23 | D22: 26 | E22: 20 | F22: 12 | G22: 17 | H22: 19 | I22: 32 | J22: 28 | K22: 19 | L22: 24 | N22: EXEMPLE | O22: Calcul des coûts de réparation cumulatifs | T22: Semoir à céréales de 35 pi | U22: 160 MFWD | V22: 14.9 | W22: 1.8 | X22: 26.5
B23: 18 | C23: 22 | D23: 25 | E23: 19 | F23: 10 | G23: 16 | H23: 18 | I23: 30 | J23: 27 | K23: 18 | L23: 22 | N23: Coût d'une nouvelle moissonneuse-batteuse | O23: 240 000 $ | T23: Semoir de 12 pi à roues plombeuses | U23: 75 | V23: 5.1 | W23: 2.5 | X23: 12.5
B24: 19 | C24: 21 | D24: 24 | E24: 18 | F24: 9 | G24: 16 | H24: 17 | I24: 29 | J24: 27 | K24: 17 | L24: 21 | N24: Emploi prévu | O24: 8 000 acres ou 200 heures par an pendant 5 ans | T24: Semoir de 20 pi à roues plombeuses | U24: 130 MFWD | V24: 8.5 | W24: 2.5 | X24: 21.6
B25: 20 | C25: 20 | D25: 23 | E25: 17 | F25: 8 | G25: 15 | H25: 16 | I25: 29 | J25: 26 | K25: 16 | L25: 20 | N25: Frais de réparation cumulatifs | O25: 4,2 % du prix d'achat | T25: Semoir (semis direct) de 15 pi | U25: 130 MFWD | V25: 6.4 | W25: 3.4 | X25: 21.6
B26: Source : American Society of Agricultural Engineers Standards, American Society of Agricultural Engineers, 1999 | N26: estimatifs au bout de 1 000 heures | T26: Semoir (semis direct) de 20 pi | U26: 160 MFWD | V26: 8.5 | W26: 3.1 | X26: 26.5
B27: Groupe 1 : Moissonneuses-batteuses, récolteuses-hacheuses automotrices. | N27: selon le tableau 4 | T27: Pulvérisateur de 30 pi | U27: 40 | V27: 15.4 | W27: 0.4 | X27: 6.8
B28: Groupe 2 : Andaineuses, faucheuses-conditionneuses, faucheuses rotatives, faucheuses-conditionneuses | N28: Frais de réparation | O28: Environ 10 000 $ (240 000 $ X 4,2 %) sur 5 ans, soit 2 000 $/an en | T28: Pulvérisateur de 50 pi | U28: 60 | V28: 25.6 | W28: 0.4 | X28: 9.9
C29: rotatives. | O29: moyenne
B30: Groupe 3 : Récolteuses-hacheuses, ramasseuses-presses, élévateurs, bols de broyage, vis sans fin, | O30: Pour calculer l'amortissement d'une machine d'occasion, on soustrait du prix réellement | T30: Faucheuse-conditionneuse de 9 pi | U30: 40 | V30: 4.4 | W30: 1.6 | X30: 6.8
C31: broyeurs-mélangeurs, remorques à fourrage, broyeurs à rouleaux. | O31: versé pour acheter cette machine la valeur prévue de reprise ou de récupération et on
B32: Groupe 4 : Semoirs, planteuses, pulvérisateurs. | O32: divise le résultat par la durée d'utilisation prévue sur la ferme. Le pourcentage à allouer | T32: Faucheuse-conditionneuse rotative de 9 pi | U32: 75 | V32: 6.6 | W32: 1.9 | X32: 12.5
B33: Groupe 5 : Charrues à socs, charrues chisels, cultivateurs, scarificateurs. | N33: Machines d'occasion | O33: pour les réparations doit être augmenté en fonction de l'âge de la machine ou du nombre | T33: Presse à balles carrées | U33: 40 | V33: 4.4 | W33: 1.6 | X33: 6.8
B34: Groupe 6 : Pulvériseurs, déchaumeuses, herses, bineuses. | O34: d'heures qu'elle a déjà effectué. Il faut s'attendre à dépenser plus que la normale pendant | T34: Presse à balles rondes de 1 000 lb | U34: 60 | V34: 3 | W34: 3.3 | X34: 9.9
B35: Groupe 7 : Épandeurs de fumier, machines diverses. | O35: l'année qui suit l'achat d'une machine d'occasion à cause des réparations supplémentaires | T35: Presse à balles rondes de 1 500 lb | U35: 60 | V35: 4 | W35: 2.5 | X35: 9.9
O36: nécessaires pour remettre celle-ci en parfait état de marche. | T36: Presse à grosses balles carrées | U36: 130 MFWD | V36: 16.3 | W36: 1.3 | X36: 21.6
T37: Presse à balles rondes de 1 000 lb/enrubanneuse | U37: 60 | V37: 3 | W37: 3.3 | X37: 9.9
T38: Récolteuse-hacheuse à 2 rangs | U38: 105 MFWD | V38: 1.4 | W38: 12.5 | X38: 17.4
T39: Grosse souffleuse de fourrage | U39: 60 | X39: 9.9
T40: Récolteuse-dépanouilleuse de maïs à 4 rangs de 30 po | U40: 190 | V40: 2.8 | W40: 11.4 | X40: 31.8
T41: Récolteuse-dépanouilleuse de maïs à 12 rangs de 30 po | U41: 275 | V41: 7.6 | W41: 6 | X41: 45.9
T42: Moissonneuse-batteuse à céréales de 20 pi | U42: 220 | V42: 6.8 | W42: 5.4 | X42: 36.8
T43: Moissonneuse-batteuse à céréales de 30 pi | U43: 275 | V43: 10.2 | W43: 4.5 | X43: 45.9
T44: Moissonneuse-batteuse à soya de 15 pi | U44: 220 | V44: 4.5 | W44: 8.2 | X44: 36.8
T45: Moissonneuse-batteuse à soya de 25 pi | U45: 275 | V45: 7.4 | W45: 6.2 | X45: 45.9
T46: Source : American Society of Agricultural Engineers Standards, American Society of Agricultural Engineers, 1999

Sheet Comparaison
B1: Comparaison des coûts des machines
B2: Type de machine
C3: Machine neuve | D3: Machine d'occasion | E3: Machine réparée | F3: Machine louée | G3: Travail à forfait
B4: Prix de la machine neuve (ou valeur de la machine actuelle) | C4: 175000 | D4: 100000 | E4: 35000 | F4: 175000 | G4: 0
B5: Valeur résiduelle de la machine (fin de bail) | C5: =C4*0.32 -> 56000 | D5: 25000 | E5: 15000 | F5: 65000
B6: Valeur de reprise de la machine actuelle (ou vente de tr. à forfait) | C6: 35000 | D6: 35000 | E6: 0 | F6: 35000 | G6: 35000
B7: Durée d'utilisation de la nouvelle machine (années) | C7: 5 | D7: 4 | E7: 3 | F7: 5 | G7: 0
B8: Heures d'utilisation cumulées lors de l'achat | C8: 0 | D8: 2000 | E8: 2000 | F8: 0
B9: Acres par année | C9: 1200 | D9: 1200 | E9: 1200 | F9: 1200 | G9: 1200
B10: Heures par année / Nombre total d'heures | C10: =C9/C12 -> 285.7142857 | D10: =D9/D12 -> 285.7142857 | E10: =E9/E12 -> 285.7142857 | F10: =F9/F12 -> 285.7142857
B11: Nombre total d'heures accumulées | C11: =C10*C7 -> 1428.571429 | D11: =(D10*D7)+D8 -> 3142.857143 | E11: =(E10*E7)+E8 -> 2857.142857 | F11: =(F10*F7)+F8 -> 1428.571429
B12: Vitesse de travail (acres/heure) facultatif | C12: 4.2 | D12: 4.2 | E12: 4.2 | F12: 4.2
C13: Machine neuve | D13: Machine d'occasion | E13: Machine réparée | F13: Machine louée | G13: Travail à forfait
B14: Coût du carburant par litre | C14: 0.5 | D14: 0.5 | E14: 0.5 | F14: 0.5 | G14: Taux
B15: Consommation à l'heure (litres) | C15: 40 | D15: 40 | E15: 40 | F15: 40 | G15: à l'acre
B16: Coûts annuels de réparation | C16: =C17/C7 -> 3255 | D16: =D17/D7 -> 2187.5 | E16: =E17/E7 -> 10500 | F16: =F17/F7 -> 3255 | G16: 34
B17: Coût total de réparation selon la durée d'utilisation | C17: =C4*C18/100 -> 16275 | D17: =C4*D18/100 -> 8750 | E17: =C4*E18/100 -> 31500 | F17: =C4*F18/100 -> 16275
B18: Réparations en % du prix d'achat | C18: 9.3 | D18: 5 | E18: =36-18 -> 18 | F18: =9.3 -> 9.3
B19: Acompte | C19: 5000 | D19: 5000 | E19: 0 | F19: 5000
B20: Prêt requis | C20: =(C4-C6-C19) -> 135000 | D20: =(D4-D6-D19) -> 60000
B21: Frais d'intérêts (totaux) | C21: 28618 | D21: 12719
B22: Paiements annuels (prêt ou crédit-bail) | C22: 40904 | D22: 18179 | E22: 0 | F22: 29325
B23: Taux d'actualisation (si vous investissez ailleurs) | C23: 0.06 | D23: 0.06 | E23: 0.06 | F23: 0.06 | G23: 0.06
B24: Charges annuelles fixes | C24: Machine neuve | D24: Machine d'occasion | E24: Machine réparée | F24: Machine louée | G24: Travail à forfait
B25: Amortissement annuel moyen | C25: =(C4-C5)/C7 -> 23800 | D25: =(D4-D5)/D7 -> 18750 | E25: =(E4-E5)/E7 -> 6666.666667 | F25: =(F4-F5)/F7 -> 22000
B26: Intérêts sur votre investissement (revenu pour le travail à forfait) | C26: =(C4+C6)/2*C23 -> 6300 | D26: =(D4+D6)/2*D23 -> 4050 | E26: =(E4+E6)/2*E23 -> 1050 | F26: =(F4+F6)/2*F23 -> 6300 | G26: =G23*G6 -> 2100
B27: Assurance et remisage | C27: =C4*0.015 -> 2625 | D27: =D4*0.015 -> 1500 | E27: =E4*0.015 -> 525 | F27: =F4*0.015 -> 2625
B28: Total des charges fixes | C28: =SUM(C25:C27) -> 32725 | D28: =SUM(D25:D27) -> 24300 | E28: =SUM(E25:E27) -> 8241.666667 | F28: =SUM(F25:F27) -> 30925
B29: Coûts annuels d'exploitation
B30: Carburant et lubrifiants | C30: =C15*C10*C14*1.15 -> 6571.428571 | D30: =D15*D10*D14*1.15 -> 6571.428571 | E30: =E15*E10*E14*1.15 -> 6571.428571 | F30: =F15*F10*F14*1.15 -> 6571.428571
B31: Réparations | C31: =C16 -> 3255 | D31: =D16 -> 2187.5 | E31: =E16 -> 10500 | F31: =F16 -> 3255
B32: Main-d'œuvre | C32: 0 | D32: 0 | E32: 0 | F32: 0
B33: Total des coûts d'exploitation | C33: =SUM(C30:C32) -> 9826.428571 | D33: =SUM(D30:D32) -> 8758.928571 | E33: =SUM(E30:E32) -> 17071.42857 | F33: =SUM(F30:F32) -> 9826.428571
B34: Total des coûts annuels | C34: =C33+C28 -> 42551.42857 | D34: =D33+D28 -> 33058.92857 | E34: =E33+E28 -> 25313.09524 | F34: =F33+F28 -> 40751.42857 | G34: =(G16*1200)-G26 -> 38700
B35: Coûts annuels par acre | C35: =C34/C9 -> 35.45952381 | D35: =D34/D9 -> 27.54910714 | E35: =E34/E9 -> 21.09424603 | F35: =F34/F9 -> 33.95952381 | G35: =G34/G9 -> 32.25
B37: Charges annuelles décaissées | C37: Machine neuve | D37: Machine d'occasion | E37: Machine réparée | F37: Machine louée | G37: Travail à forfait
B38: Paiements annuels - prêt | C38: =C22 -> 40904 | D38: =D22 -> 18179 | E38: =E22 -> 0 | F38: =F22 -> 29325
B39: Acompte X taux d'intérêt | C39: =C19*C23 -> 300 | D39: =D19*D23 -> 300 | E39: =E19*E23 -> 0 | F39: =F19*F23 -> 300
B40: Total des coûts d'exploitation | C40: =C33 -> 9826.428571 | D40: =D33 -> 8758.928571 | E40: =E33 -> 17071.42857 | F40: =F33 -> 9826.428571
B41: Total des charges décaissées avant impôt | C41: =SUM(C38:C40) -> 51030.42857 | D41: =SUM(D38:D40) -> 27237.92857 | E41: =SUM(E38:E40) -> 17071.42857 | F41: =SUM(F38:F40) -> 39451.42857 | G41: =G16*G9 -> 40800
B42: Charges décaissées par acre | C42: =C41/C9 -> 42.52535714 | D42: =D41/D9 -> 22.69827381 | E42: =E41/E9 -> 14.22619048 | F42: =F41/F9 -> 32.87619048 | G42: =G16 -> 34
B43: Calcul des coûts après impôt | C43: Machine neuve | D43: Machine d'occasion | E43: Machine réparée | F43: Machine louée | G43: Travail à forfait
B44: Taux d'imposition | C44: 0.41 | D44: 0.41 | E44: 0.41 | F44: 0.41 | G44: 0.41
B45: Taux de la déduction pour amortissement | C45: 0.3 | D45: 0.3 | E45: 0.3
B46: Dépenses déductibles
B47: Déduction pour amortissement moyenne par année | C47: =VLOOKUP(C7,$B$66:$H$76,3,FALSE)/C7 -> 27857.025 | D47: =VLOOKUP(D7,$B$66:$H$76,5,FALSE)/D7 -> 17711.25 | E47: =VLOOKUP(E7,$B$66:$H$76,7,FALSE)/E7 -> 6807.5
B48: Frais d'intérêt annuels (moyens) | C48: =C21/C7 -> 5723.6 | D48: =D21/D7 -> 3179.75 | E48: =E21/E7 -> 0 | F48: =F21/F7 -> 0
B49: Carburant, lubrifiants et réparations | C49: =C30+C31 -> 9826.428571 | D49: =D30+D31 -> 8758.928571 | E49: =E30+E31 -> 17071.42857 | F49: =F30+F31 -> 9826.428571 | G49: =G30+G31 -> 0
B50: Paiements de location | F50: =F38 -> 29325
B51: Dépenses liées au travail à forfait | G51: =G16*G9 -> 40800
B52: Total des dépenses déductibles | C52: =SUM(C47:C51) -> 43407.05357 | D52: =SUM(D47:D51) -> 29649.92857 | E52: =SUM(E47:E51) -> 23878.92857 | F52: =SUM(F47:F51) -> 39151.42857 | G52: =SUM(G47:G51) -> 40800
B53: Réduction d'impôt | C53: =C52*C44 -> 17796.89196 | D53: =D52*D44 -> 12156.47071 | E53: =E52*E44 -> 9790.360714 | F53: =F52*F44 -> 16052.08571 | G53: =G52*G44 -> 16728
B54: Réduction d'impôt par acre | C54: =C53/C9 -> 14.8307433 | D54: =D53/D9 -> 10.13039226 | E54: =E53/E9 -> 8.158633929 | F54: =F53/F9 -> 13.3767381 | G54: =G53/G9 -> 13.94
B55: Coûts après impôt par acre | C55: =C42-C54 -> 27.69461384 | D55: =D42-D54 -> 12.56788155 | E55: =E42-E54 -> 6.067556548 | F55: =F42-F54 -> 19.49945238 | G55: =G42-G54 -> 20.06
B57: Calcul de la DPA ci-dessous
B65: Calcul de la DPA
B66: Début | C66: =+C4 -> 175000 | E66: =+D4 -> 100000 | G66: =+E4 -> 35000
B67: 1 | C67: =C66-C78 -> 148750 | D67: =$C$66-C67 -> 26250 | E67: =E66-D78 -> 85000 | F67: =$E$66-E67 -> 15000 | G67: =G66-E78 -> 29750 | H67: =$G$66-G67 -> 5250
B68: 2 | C68: 104125 | D68: =$C$66-C68 -> 70875 | E68: 59500 | F68: =$E$66-E68 -> 40500 | G68: 20825 | H68: =$G$66-G68 -> 14175
B69: 3 | C69: 72887.5 | D69: 102112.5 | E69: 41650 | F69: 58350 | G69: 14577.5 | H69: 20422.5
B70: 4 | C70: 51021.25 | D70: 123978.75 | E70: 29155 | F70: 70845 | G70: 10204.25 | H70: 24795.75
B71: 5 | C71: 35714.875 | D71: 139285.125 | E71: 20408.5 | F71: 79591.5 | G71: 7142.975 | H71: 27857.025
B72: 6 | C72: 25000.4125 | D72: 149999.5875 | E72: 14285.95 | F72: 85714.05 | G72: 5000.0825 | H72: 29999.9175
B73: 7 | C73: 17500.28875 | D73: 157499.7112 | E73: 10000.165 | F73: 89999.835 | G73: 3500.05775 | H73: 31499.94225
B74: 8 | C74: 12250.20212 | D74: 162749.7979 | E74: 7000.1155 | F74: 92999.8845 | G74: 2450.040425 | H74: 32549.95958
B75: 9 | C75: 8575.141488 | D75: 166424.8585 | E75: 4900.08085 | F75: 95099.91915 | G75: 1715.028298 | H75: 33284.9717
B76: 10 | C76: 6002.599041 | D76: 168997.401 | E76: 3430.056595 | F76: 96569.9434 | G76: 1200.519808 | H76: 33799.48019
B77: Déductions
B78: Année 1 | C78: =0.5*C45*C66 -> 26250 | D78: =0.5*D45*E66 -> 15000 | E78: =0.5*E45*G66 -> 5250
B79: Année 2 | C79: =C45*C67 -> 44625 | D79: =D45*E67 -> 25500 | E79: =E45*G67 -> 8925
B80: Année 3 | C80: =C45*C68 -> 31237.5 | D80: =D45*E68 -> 17850 | E80: =E45*G68 -> 6247.5
B81: Année 4 | C81: =C45*C69 -> 21866.25 | D81: =D45*E69 -> 12495 | E81: =E45*G69 -> 4373.25
B82: Année 5 | C82: =$C$45*C70 -> 15306.375 | D82: =D45*E70 -> 8746.5 | E82: =E45*G70 -> 3061.275
B83: Année 6 | C83: 10714.4625 | D83: =$C$45*E71 -> 6122.55 | E83: =$C$45*G71 -> 2142.8925
B84: Année 7 | C84: 7500.12375 | D84: =$C$45*E72 -> 4285.785 | E84: =$C$45*G72 -> 1500.02475
B85: Année 8 | C85: 5250.086625 | D85: =$C$45*E73 -> 3000.0495 | E85: =$C$45*G73 -> 1050.017325
B86: Année 9 | C86: 3675.060637 | D86: =$C$45*E74 -> 2100.03465 | E86: =$C$45*G74 -> 735.0121275
B87: Année 10 | C87: 2572.542446 | D87: =$C$45*E75 -> 1470.024255 | E87: =$C$45*G75 -> 514.5084893
B89: Total pour 5 ans | C89: =SUM(C78:C82) -> 139285.125 | D89: =SUM(D78:D82) -> 79591.5 | E89: =SUM(E78:E82) -> 27857.025
B90: Déduction moyenne | C90: =C89/5 -> 27857.025 | D90: =D89/5 -> 15918.3 | E90: =E89/5 -> 5571.405

Sheet Prêt
C1: Calendrier des paiements | H1: Totaux cumulatifs : principal, intérêts et paiements
F2: PAIEMENT
A3: MONTANT DU PRÊT ($) | D3: 60000 | F3: =IF(AND(AND(AND(AND(D5>=1,D6>=1),D7>=1),D3>=0),D4>=0),IF(D4=0,D3/D5/D6,((1+(D4/(D7*100)))^(D7/D6)-1)/(1-((1/(1+((1+(D4/(D7*100)))^(D7/D6)-1))^(D6*D5))))*D3),#VALUE!) -> 18179.80664 | H3: À partir du paiement numéro : | K3: 1
A4: TAUX D'INTÉRÊT ANNUEL % | D4: 8 | F4: Intérêts prévus | H4: jusqu'au paiement numéro : | K4: 12
A5: DURÉE DU PRÊT (ANNÉES) | D5: 4 | F5: =F3*D5*D6-D3 -> 12719.22657 | I5: August 6, 1997 Release 1
A6: Nbre DE PAIEMENTS PAR ANNÉE | D6: 1 | F6: Intérêts réels | I6: Paiements totaux : $ | K6: 18113.52
A7: Nbre DE PÉRIODES DE CAP. DES INTÉRÊTS/AN | D7: 2 | F7: tenant compte des paiements facultatifs | I7: Intérêts totaux : $ | K7: 10291.14
A8: =IF(D6<1," WARNING: PAYMENTS PER YEAR SHOULD BE AT LEAST 1 ",IF(D4<0," Warning: Interest rate must be at least 0","")) ->  | F8: =IF(D5*D6>400,"Can not calculate",SUM(D14:D413)) -> 12719.22 | I8: Principal total : $ | K8: 7822.38
A9: =IF(D5<1," WARNING: LENGTH IS LESS THAN ONE YEAR: DOUBLE CHECK INPUT",IF(D3<=0," Warning: Loan Amount must be greater than 0","")) ->  | F9: =IF(D5*D6>400,"more than 400 payments","") ->  | H9: =IF(K6<=0,"Please correct your choice of payment numbers ","") -> 
A10: =IF(D7<1," WARNING: NUMBER OF COMPOUNDING PERIODS SHOULD BE AT LEAST ONE PER YEAR","") -> 
B11: Solde | C11: Paiement | F11: Paiements | G11: Solde | I11: Paiements | J11: Intérêts | K11: Principal
A12: Paiement | B12: d'ouverture | C12: prévu | D12: Intérêts | E12: Principal | F12: facultatifs | G12: de clôture | H12: Paiem. | I12: cumulés | J12: cumulés | K12: cumulé
B13: 120000 | G13: 120000 | H13: 0 | I13: 0 | J13: 0 | K13: 0
A14: 1 | B14: =D3 -> 60000 | C14: =ROUND(IF(B14+D14<$F$3,B14+D14,$F$3),2) -> 18179.81 | D14: =ROUND(((1+(D4/($D$7*100)))^($D$7/$D$6)-1)*B14,2) -> 4896 | E14: =C14-D14+F14 -> 13283.81 | F14: 0 | G14: =ROUND(B14-E14,2) -> 46716.19 | H14: =A14 -> 1 | I14: =C14+F14 -> 18179.81 | J14: =D14 -> 4896 | K14: =I14-J14 -> 13283.81
A15: =IF(G14=0,"",1+A14) -> 2 | B15: =IF(G14=0,"",ROUND(G14,2)) -> 46716.19 | C15: =IF(G14=0,"",ROUND(IF(B15+D15<$F$3,B15+D15,$F$3),2)) -> 18179.81 | D15: =IF(G14=0,"",ROUND(((1+($D$4/($D$7*100)))^($D$7/$D$6)-1)*B15,2)) -> 3812.04 | E15: =IF(G14=0,"",C15-D15+F15) -> 14367.77 | F15: 0 | G15: =IF(G14=0,"",ROUND(B15-E15,2)) -> 32348.42 | H15: 2 | I15: =IF(G14=0,"",C15+F15+I14) -> 36359.62 | J15: =IF(G14=0,"",J14+D15) -> 8708.04 | K15: =IF(G14=0,"",I15-J15) -> 27651.58
A16: =IF(G15=0,"",1+A15) -> 3 | B16: =IF(G15=0,"",ROUND(G15,2)) -> 32348.42 | C16: 18179.81 | D16: 2639.63 | E16: =IF(G15=0,"",C16-D16+F16) -> 15540.18 | F16: 0 | G16: =IF(G15=0,"",ROUND(B16-E16,2)) -> 16808.24 | H16: 3 | I16: 54539.43 | J16: 11347.67 | K16: 43191.76
A17: 4 | B17: 16808.24 | C17: 18179.79 | D17: 1371.55 | E17: 16808.24 | F17: 0 | G17: 0 | H17: 4 | I17: 72719.22 | J17: 12719.22 | K17: 60000
F18: 0
F19: 0
A20: =IF(G19=0,"",1+A19) ->  | F20: 0
F21: 0
F22: 0
F23: 0
F24: 0
F25: 0
F26: 0
F27: 0
F28: 0
F29: 0
F30: 0
F31: 0
F32: 0
F33: 0
F34: 0
B35: =IF(G34=0,"",ROUND(G34,2)) ->  | F35: 0
F36: 0
F37: 0
F38: 0
F39: 0
F40: 0
F41: 0
F42: 0
A43: =IF(G42=0,"",1+A42) ->  | F43: 0
F44: 0
F45: 0
F46: 0
F47: 0 | I47: =IF(G46=0,"",C47+F47+I46) ->  | J47: =IF(G46=0,"",J46+D47) ->  | K47: =IF(G46=0,"",I47-J47) -> 
F48: 0
F49: 0
F50: 0
F51: 0
F52: 0
F53: 0
F54: 0
F55: 0
F56: 0
F57: 0
F58: 0
F59: 0
F60: 0
F61: 0
F62: 0
F63: 0
F64: 0
F65: 0
F66: 0
F67: 0
F68: 0
F69: 0
F70: 0
F71: 0
F72: 0
F73: 0 | G73: =IF(G72=0,"",ROUND(B73-E73,2)) -> 
F74: 0 | K74: =A74 ->  | L74: =IF(G73=0,"",C74+F74+L73) ->  | M74: =IF(G73=0,"",M73+D74) ->  | N74: =IF(G73=0,"",L74-M74) -> 
F75: 0
F76: 0
F77: 0
F78: 0
C79: =IF(G78=0,"",ROUND(IF(B79+D79<$F$3,B79+D79,$F$3),2)) ->  | D79: =IF(G78=0,"",ROUND(((1+($D$4/($D$7*100)))^($D$7/$D$6)-1)*B79,2)) ->  | F79: 0
A80: =IF(G79=0,"",1+A79) ->  | B80: =IF(G79=0,"",ROUND(G79,2)) ->  | E80: =IF(G79=0,"",C80-D80+F80) ->  | F80: 0 | G80: =IF(G79=0,"",ROUND(B80-E80,2)) -> 
F81: 0
F82: 0
F83: 0
F84: 0
F85: 0
F86: 0
F87: 0
F88: 0
F89: 0
F90: 0
F91: 0
F92: 0
F93: 0
F94: 0
F95: 0
F96: 0
F97: 0
F98: 0
F99: 0
F100: 0
F101: 0
F102: 0
F103: 0
F104: 0
F105: 0
F106: 0
F107: 0
F108: 0
F109: 0
F110: 0
F111: 0
F112: 0
F113: 0
F114: 0
F115: 0
F116: 0
F117: 0
F118: 0
F119: 0
F120: 0
F121: 0
F122: 0
F123: 0
F124: 0
F125: 0
F126: 0
F127: 0
F128: 0
F129: 0
F130: 0
F131: 0
F132: 0
F133: 0
F134: 0
F135: 0
F136: 0
F137: 0
F138: 0 | K138: =A138 ->  | L138: =IF(G137=0,"",C138+F138+L137) ->  | M138: =IF(G137=0,"",M137+D138) ->  | N138: =IF(G137=0,"",L138-M138) -> 
F139: 0
F140: 0
F141: 0
F142: 0
C143: =IF(G142=0,"",ROUND(IF(B143+D143<$F$3,B143+D143,$F$3),2)) ->  | D143: =IF(G142=0,"",ROUND(((1+($D$4/($D$7*100)))^($D$7/$D$6)-1)*B143,2)) ->  | F143: 0
A144: =IF(G143=0,"",1+A143) ->  | B144: =IF(G143=0,"",ROUND(G143,2)) ->  | E144: =IF(G143=0,"",C144-D144+F144) ->  | F144: 0 | G144: =IF(G143=0,"",ROUND(B144-E144,2)) -> 
F145: 0
F146: 0
F147: 0
F148: 0
F149: 0
F150: 0
F151: 0
F152: 0
F153: 0
F154: 0
F155: 0
F156: 0
F157: 0
F158: 0
F159: 0
F160: 0
F161: 0
F162: 0
F163: 0
F164: 0
F165: 0
F166: 0
F167: 0
F168: 0
F169: 0
F170: 0
F171: 0
F172: 0
F173: 0
F174: 0
F175: 0
F176: 0
F177: 0
F178: 0
F179: 0
F180: 0
F181: 0
F182: 0
F183: 0
F184: 0
F185: 0
F186: 0
F187: 0
F188: 0
F189: 0
F190: 0
F191: 0
F192: 0
F193: 0
F194: 0
F195: 0
F196: 0
F197: 0
F198: 0
F199: 0
F200: 0
... 173 more rows

Sheet Acheter ou louer
B2: Acheter ou louer?
B3: Location
B4: Coût de l'équipement | C4: 100000
B5: Total annuel des paiements de location | C5: 11548
B6: Durée du bail | C6: 4
B7: Total des paiements prévus | C7: =C5*C6 -> 46192 | D7: (A)
B8: Acompte ou reprise | C8: 20000
B9: Total des décaissements | C9: =C7+C8 -> 66192 | E9: Pour lire la fiche technique sur le crédit-bail agricole,
B10: Déduction fiscale (taux d'imposition de 41 % - 0,41 x ligne A) | C10: =0.41*C7 -> 18938.72 | E10: cliquer sur l'icône ci-dessous
B11: Coût de location total après impôt | C11: =C9-C10 -> 47253.28
B12: Achat
B13: Coût de l'équipement | C13: 100000 | D13: (B)
B14: Acompte ou reprise | C14: 20000 | D14: (C)
B15: Montant du prêt | C15: =C13-C14 -> 80000
B16: Total des paiements de prêt - 4 ans à 8 % | C16: 96956 | D16: (D)
B17: Total des paiements de prêt par année | C17: 24239
B18: Valeur comptable résiduelle de l’équipement après 4 ans (30 %) | C18: 29155 | D18: (E)
B19: Juste valeur marchande de l’actif après 4 ans | C19: 50000
B20: Solde du prêt après 4 ans
B21: Total investi dans l'achat (C+D-E) | C21: =C14+C16-C19 -> 66956
B22: Déduction fiscale (taux d'imposition de 41 %)
B23: Intérêts (16 956 $ x 0,41) | C23: =(C16-C15)*0.41 -> 6951.96
B24: Amortissement (B - E x 0,41) | C24: =(C13-C18)*0.41 -> 29046.45
B25: Récupération de l'amortissement si l'équipement est vendu après 4 ans | C25: =C19-C18 -> 20845
B26: Impôt sur l'amortissement récupéré (taux d'imposition de 41 %) | C26: =0.41*C25 -> 8546.45
B27: Coût d'achat total après impôt | C27: =C21-C23-C24+C26 -> 39504.04
B29: Hausse moyenne annuelle des liquidités que procure l'option location | C29: =C17-C5 -> 12691
B30: Économies moyennes annuelles que procure l'option achat | C30: =(C11-C27)/4 -> 1937.31
